Cogmind - Beta 16.1 @@@ ROGUE MODE // 2026.05.03 @ 21:38:35 Player: Stavbearer Result: Destroyed by S-10 Pest with Light Assault Rifle Performance ------------- Evolutions (0) 0 Regions Visited (4) 800 Robots Destroyed (34) 170 Value Destroyed (519) 519 Prototype IDs (3) 60 Alien Tech Used (0) 0 Bonus (0) 0 TOTAL SCORE: 1549 Bonus ------- None Cogmind --------- Core Integrity 0/250 Matter 228/300 Energy 234/250 System Corruption 8% Temperature Cool (0) Movement Rolling (95) Ox1 Location -9/Mines Parts ------- > --- POWER (1) -------- Ion Engine > --- PROPULSION (2) --- Light Treads Wheel > --- UTILITY (2) ------ Medium Storage Unit Structural Scanner > --- WEAPON (2) ------- Light Assault Rifle Light Assault Rifle > --- INVENTORY (10) --- Flight Unit Flight Unit Flight Unit Flight Unit Light Armor Plating Assault Rifle Hammer Peak State ------------ > --- POWER ------------ Light Nuclear Core > --- PROPULSION ------- Light Treads Light Treads > --- UTILITY ---------- Medium Storage Unit Seismic Detector > --- WEAPON ----------- Assault Rifle Light Assault Rifle > --- INVENTORY -------- Ion Engine Ion Engine Light Treads Flight Unit Flight Unit Flight Unit Small Storage Unit Light Armor Plating Light Assault Rifle Grenade Launcher [Rating: 10] Favorites ----------- Power Light Nuclear Core Engine Ion Engine Power Core Light Nuclear Core Propulsion Light Treads Treads Light Treads Wheel Wheel Utility Medium Storage Unit Device Structural Scanner Storage Medium Storage Unit Weapon Light Assault Rifle Ballistic Gun Light Assault Rifle Launcher Grenade Launcher Impact Weapon Hammer Build | -11 -10 -10 -10 -9 ------- Run | Yrd Mat Min Exi Min Slots Evolved . | . . . . . Power . | . . . . . Propulsion . | . . . . . Utility . | . . . . . Weapon . | . . . . . Parts Attached 18 | 7 5 3 . 3 Power 3 | 1 1 . . 1 Engine 2 | 1 . . . 1 Core 1 | . 1 . . . Reactor . | . . . . . Propulsion 4 | 2 1 . . 1 Treads 3 | 2 1 . . . Leg . | . . . . . Wheel 1 | . . . . 1 Hover . | . . . . . Flight . | . . . . . Utility 4 | 2 1 1 . . Device 2 | 1 . 1 . . Storage 2 | 1 1 . . . Processor . | . . . . . Hackware . | . . . . . Protection . | . . . . . Artifact . | . . . . . Weapon 7 | 2 2 2 . 1 Energy Gun . | . . . . . Energy Cannon . | . . . . . Ballistic Gun 5 | 2 2 1 . . Ballistic Cannon . | . . . . . Launcher 1 | . . . . 1 Special Weapon . | . . . . . Impact Weapon 1 | . . 1 . . Slashing Weapon . | . . . . . Piercing Weapon . | . . . . . Special Melee Weapon . | . . . . . Unidentified Prototypes . | . . . . . Corrupted Parts 1 | . . . . 1 System Corruption 8 | . . . . 8 Parts Lost 5 | . 1 . . 4 Power 1 | . . . . 1 Propulsion 2 | . . . . 2 Utility 1 | . 1 . . . Weapon 1 | . . . . 1 Highest Loss Streak 4 | . 1 . . 4 To Critical Strikes . | . . . . . Average Backups 8 | . 8 9 10 8 Power . | . 1 1 1 . Propulsion 4 | . 4 5 5 4 Utility 1 | . 1 1 1 1 Weapon 2 | . 1 2 3 2 Tool/Special . | . . . . . Unused Backups 6 | . 1 . . 5 Power . | . . . . . Propulsion 5 | . 1 . . 4 Utility 1 | . . . . 1 Weapon . | . . . . . Tool/Special . | . . . . . Average Slot Usage (%) 98 | . 99 100 100 81 Engine 2 | . 5 . . 8 Core 11 | . 8 14 14 4 Treads 27 | . 28 28 28 17 Device 13 | . 13 14 14 14 Storage 14 | . 14 14 14 14 Ballistic Gun 22 | . 28 25 14 1 Impact Weapon 5 | . . 2 14 14 Peak Build Rating 10 | 7 10 10 10 10 Average Rating 9 | 5 8 9 10 6 On Entrance 7 | . 7 9 10 10 Avg Prop Armor Cover (%) 17 | . . . . 17 Naked Turns . | . . . . . Heaviest Build 21 | 13 19 19 19 21 Greatest Support 40 | 40 40 40 40 40 Greatest Overweight (x) 4 | . . . . 4 Average Overweight (x) . | . . . . . Largest Inventory Capacity 10 | 8 10 10 10 10 Average Capacity 9 | 7 9 10 10 10 Most Carried 10 | 1 10 10 10 10 Average Carried 8 | . 8 9 10 8 Final Capacity 10 | 8 10 10 10 10 Final Carried 10 | 1 10 10 10 7 Class Distribution -------------------- 63% | Scavenger-Mutant 36% | Mutant Dominant Class ---------------- Mutant | -10/Materials Scavenger-Mutant | -10/Mines Scavenger-Mutant | -10/Exiles Mutant | -9/Mines Resources | -11 -10 -10 -10 -9 ----------- Run | Yrd Mat Min Exi Min Matter Collected 843 | 241 435 94 33 40 Remotely . | . . . . . Salvage Created 1121 | 96 741 46 198 40 Parts 72 | 8 58 5 . 1 Haulers Intercepted 2 | . 2 . . . Recyclers Shooed . | . . . . . Parts Field Recycled . | . . . . . Retrieved Matter . | . . . . . Parts Self-Destructed . | . . . . . Prevented . | . . . . . Parts Restored . | . . . . . Kills | -11 -10 -10 -10 -9 ------- Run | Yrd Mat Min Exi Min Combat Hostiles Destroyed 24 | . 17 3 . 4 Melee 2 | . . . . 2 Guns 20 | . 17 3 . . AOE 2 | . . . . 2 Classes Destroyed 8 | 2 5 . . 1 Builder 5 | . 4 . . 1 Tunneler 3 | 2 . . . 1 Hauler 2 | . 2 . . . Recycler 1 | 1 . . . . Watcher 3 | . 3 . . . Swarmer 12 | . 9 3 . . Grunt 8 | . 8 . . . Assembled 4 | . . . . 4 Best Kill Streak 4 | 2 3 3 . 4 Combat Bots Only 4 | . 3 3 . 4 Max Kills in Single Turn 2 | 1 2 2 . 1 Gunslinging 1 | . 1 1 . . Exploded 1 | . . . . 1 Melee 1 | . . . . 1 Uniques/NPCs Destroyed . | . . . . . Combat | -11 -10 -10 -10 -9 -------- Run | Yrd Mat Min Exi Min Hostile Shots Fired 109 | . 81 11 . 17 Missed 32 | . 25 4 . 3 Hits 77 | . 56 7 . 14 Melee 1 | . . . . 1 Projectile 76 | . 56 7 . 13 AOE 7 | . . . . 7 Critical Strikes 1 | . 1 . . . Damage Taken 1035 | . 583 54 . 398 Core 251 | . 75 . . 176 Absorbed by Shields . | . . . . . Core Remaining (%) 100 | 100 . . . . Volleys Fired 148 | 8 101 8 23 8 Largest 2 | 2 2 2 1 2 Hottest 40 | 40 40 40 20 40 Shots Fired 266 | 16 202 16 23 9 Gun 259 | 16 202 16 23 2 Cannon . | . . . . . Launcher 7 | . . . . 7 Special . | . . . . . Kinetic 259 | 16 202 16 23 2 Thermal . | . . . . . Explosive 7 | . . . . 7 Electromagnetic . | . . . . . Robot Hit Streak 12 | 4 8 12 5 2 Robot Miss Streak 4 | 2 4 1 2 3 Penetration Max . | . . . . . Secondary Targets 6 | . 5 1 . . Max Gunslinging Chain 1 | . 1 1 . . Shots Hit Robots 171 | 9 114 13 28 7 Core Hits 73 | 5 41 5 12 10 Critical Kills 2 | . . . 2 . Critical Parts Destroyed 6 | . . 1 4 1 Critical Strikes 8 | . . 1 6 1 Destroy 3 | . . 1 2 . Smash 5 | . . . 4 1 Melee Attacks 36 | . . 2 29 5 Impact 36 | . . 2 29 5 Slashing . | . . . . . Piercing . | . . . . . Sneak Attacks 3 | . . . . 3 Combat Hostiles . | . . . . . Follow-up Attacks . | . . . . . Damage Inflicted 2628 | 84 1127 121 856 440 Guns 1473 | 84 1127 118 144 . Cannons . | . . . . . Explosions 236 | . . . . 236 Melee 916 | . . . 712 204 Ramming 3 | . . 3 . . Kinetic 1473 | 84 1127 118 144 . Thermal . | . . . . . Explosive 236 | . . . . 236 Electromagnetic . | . . . . . Impact 916 | . . . 712 204 Slashing . | . . . . . Piercing . | . . . . . Highest Corruption 8 | . . . . 8 Average Corruption 8 | . . . . 8 Corruption Purged . | . . . . . Corruption Blocked . | . . . . . Effects 2 | . . . . 2 Message Errors 1 | . . . . 1 Energy Discharges 1 | . . . . 1 Overload Shots . | . . . . . Overflow Damage 371 | . . . 280 91 Projectiles . | . . . . . Explosions 5 | . . . . 5 Melee 366 | . . . 280 86 Knockbacks 8 | . . . 6 2 Impact 8 | . . . 6 2 Kinetic . | . . . . . Secondary . | . . . . . Self-Inflicted Damage 31 | . . . . 31 Shots 1 | . . . . 1 Rammed 1 | . . 1 . . Targets Rammed 1 | . . 1 . . Kicked . | . . . . . Crushed . | . . . . . Highest Temperature 18 | . 18 4 4 . Average Temperature 4 | . 4 3 2 . Received Heat Transfer 201 | . 201 . . . Siege Activations . | . . . . . Martial Activations . | . . . . . Shielding Activations . | . . . . . Robots Disrupted . | . . . . . Combat Hostiles . | . . . . . Robots Corrupted 3 | . . . 1 2 Combat Hostiles 1 | . . . 1 . Parts Fried 5 | . . . 3 2 Impact Corruptions 14 | . . . 9 5 Robots Melted . | . . . . . Combat Hostiles . | . . . . . Parts Melted . | . . . . . Heat Transferred . | . . . . . Parts Sabotaged . | . . . . . Parts Stolen . | . . . . . Parts Stripped . | . . . . . Power Chain Reactions . | . . . . . Alert | -11 -10 -10 -10 -9 ------- Run | Yrd Mat Min Exi Min Maximum Alert Level . | . . . . . Low Security (%) 100 | 100 100 100 . 100 Level 1 . | . . . . . Level 2 . | . . . . . Level 3 . | . . . . . Level 4 . | . . . . . Level 5 . | . . . . . High Security . | . . . . . Max Security . | . . . . . Peak Influence 104 | 10 104 71 . 24 Initial 31 | . . 31 . . Average 27 | 1 41 7 . 2 Influence Increases 678 | 15 531 71 10 51 Destroy 0b10 Robot/C 400 | . 340 60 . . Destroy 0b10 Robot/NC 80 | 15 45 . 10 10 Destroy Leader 90 | . 80 10 . . Successful Hack 66 | . 66 . . . Disable Machine 15 | . . . . 15 Destroy Structure 27 | . . 1 . 26 Influence Decreases 678 | 15 448 154 10 51 Entered New Map 52 | . . 52 . . Time Decay 585 | 15 438 102 10 20 Lost Part 31 | . 10 . . 21 Lost Ally 10 | . . . . 10 Squads Dispatched 3 | . 3 . . . Investigation 2 | . 2 . . . Extermination . | . . . . . Reinforcement 1 | . 1 . . . Assault . | . . . . . Garrison . | . . . . . Intercept . | . . . . . Searches Triggered . | . . . . . Construction Impeded . | . . . . . Haulers Reinforced . | . . . . . Active Scanning Responses . | . . . . . Cargo Convoy Interrupts . | . . . . . Stealth | -11 -10 -10 -10 -9 --------- Run | Yrd Mat Min Exi Min Distress Signals 1 | . 1 . . . Communications Jammed . | . . . . . Distress Signals . | . . . . . Times Spotted 46 | . 31 3 . 12 Peak Tracking Total 5 | . 5 3 . 5 Tactical Retreats 1 | . . . . 1 Traps | -11 -10 -10 -10 -9 ------- Run | Yrd Mat Min Exi Min Traps Triggered . | . . . . . Indirectly . | . . . . . Trap Hack Attempts . | . . . . . Triggered . | . . . . . Disarmed . | . . . . . Reprogrammed . | . . . . . Reused . | . . . . . Traps Extracted . | . . . . . Installed . | . . . . . Triggered . | . . . . . Machines | -11 -10 -10 -10 -9 ---------- Run | Yrd Mat Min Exi Min Machines Disabled 1 | . . . . 1 Max in Single Turn 1 | . . . . 1 Machines Repaired . | . . . . . Machines Dismantled . | . . . . . Machines Sabotaged . | . . . . . Overloaded Fab Kills . | . . . . . Hacking | -11 -10 -10 -10 -9 --------- Run | Yrd Mat Min Exi Min Machines Accessed 12 | . 10 . 2 . Terminals 7 | . 7 . . . Fabricators . | . . . . . Repair Stations 1 | . 1 . . . Recycling Units 2 | . 2 . . . Scanalyzers . | . . . . . Garrison Access . | . . . . . Total Hacks 30 | . 22 . 8 . Successful 18 | . 10 . 8 . Failed 12 | . 12 . . . Catastrophic 4 | . 4 . . . Database Lockouts . | . . . . . Manual 6 | . 6 . . . Terminals 19 | . 19 . . . Fabricators . | . . . . . Repair Stations 1 | . 1 . . . Recycling Units 2 | . 2 . . . Scanalyzers . | . . . . . Garrison Access . | . . . . . Terminal Hacks 16 | . 8 . 8 . Record 8 | . . . 8 . Robot Analysis 2 | . 2 . . . Prototype ID Bank 1 | . 1 . . . Level Access Points 1 | . 1 . . . Branch Access Points 1 | . 1 . . . Emergency Access Points 1 | . 1 . . . Security Status 1 | . 1 . . . Zone Layout 1 | . 1 . . . Fabricator Hacks . | . . . . . Repair Station Hacks . | . . . . . Recycling Unit Hacks 2 | . 2 . . . Report Inventory 2 | . 2 . . . Scanalyzer . | . . . . . Garrison Access Hacks . | . . . . . Unauthorized Hacks . | . . . . . Terminals . | . . . . . Fabricators . | . . . . . Repair Stations . | . . . . . Recycling Units . | . . . . . Scanalyzers . | . . . . . Garrison Access . | . . . . . Data Cores Recovered . | . . . . . Used . | . . . . . Hacking Detections 8 | . 8 . . . Full Trace Events 2 | . 2 . . . Feedback Events . | . . . . . Feedback Blocked . | . . . . . Robot Schematics Acquired . | . . . . . Robots Built . | . . . . . Authchips . | . . . . . Time . | . . . . . Total Robot Build Rating . | . . . . . Part Schematics Acquired . | . . . . . Parts Built . | . . . . . Authchips . | . . . . . Time . | . . . . . Total Part Build Rating . | . . . . . Part Studies Acquired . | . . . . . Parts Repaired . | . . . . . Time . | . . . . . Parts Recycled . | . . . . . Recycled Matter . | . . . . . Retrieved Matter . | . . . . . Retrieved Components . | . . . . . Parts Scanalyzed . | . . . . . Part Schematics Acquired . | . . . . . Parts Damaged . | . . . . . Bothacking | -11 -10 -10 -10 -9 ------------ Run | Yrd Mat Min Exi Min Used RIF Installer . | . . . . . Robots Hacked . | . . . . . Non-combat . | . . . . . Combat . | . . . . . Robot Hacks Applied . | . . . . . Relay Couplers Released . | . . . . . Fabnet Peak Effective % . | . . . . . Robots Rewired 2 | . . . 2 . Allies Hacked . | . . . . . Hacks Repelled . | . . . . . Allies | -11 -10 -10 -10 -9 -------- Run | Yrd Mat Min Exi Min Total Allies 3 | . . 1 2 . Largest Group 2 | . . 1 2 2 Highest-Rated Group 31 | . . 31 16 15 Highest-Rated Ally 31 | . . 31 8 8 Total Orders . | . . . . . Ally Attacks 2 | . . . . 2 Total Damage . | . . . . . Kills . | . . . . . Allies Corrupted . | . . . . . Allies Melted . | . . . . . Intel | -11 -10 -10 -10 -9 ------- Run | Yrd Mat Min Exi Min Active Infowar (turns) 3594 | 16 1589 799 984 206 Structural 1989 | . . 799 984 206 Seismic 1605 | 16 1589 . . . Robot Analysis Total 2 | . 2 . . . Derelict Logs Recovered 3 | . . 2 . 1 Drone Launches . | . . . . . Drone Recoveries . | . . . . . Exploration | -11 -10 -10 -10 -9 ------------- Run | Yrd Mat Min Exi Min Turns Passed 3783 | 113 1681 799 984 206 Spaces Moved 1979 | 54 842 460 501 122 Core 6 | 4 . . . 2 Treads 1930 | 50 842 460 501 77 Legs . | . . . . . Wheels 43 | . . . . 43 Hover . | . . . . . Flight . | . . . . . Fastest Speed 50 | 50 160 160 160 95 Average Speed 158 | 151 160 160 160 138 Slowest Speed 250 | 160 160 160 160 250 Overloaded Moves . | . . . . . Propulsion Burnouts . | . . . . . Robots Hopped . | . . . . . Potential Cave-ins . | . . . . . Cave-ins Triggered . | . . . . . Exploration Rate (%) 61 | 3 97 96 73 36 Regions Visited 4 Branch Regions 3 Pre-discovered Areas 1 | . . . 1 . Known Exits Taken 1 | . 1 . . . Unknown Exits Taken 3 | 1 . 1 1 . Scrap Searched 2 | . . 2 . . Spaces Dug 13 | . . 1 2 10 Terrain Destroyed 36 | . . 1 2 33 Melee 3 | . . 1 2 . Projectile . | . . . . . AOE 33 | . . . . 33 Terrain Rammed . | . . . . . Walls Destroyed . | . . . . . Machines Disabled . | . . . . . Actions | -11 -10 -10 -10 -9 --------- Run | Yrd Mat Min Exi Min Total 2325 | 69 997 504 614 141 Wait 64 | . 34 30 . . Move 1975 | 53 841 459 500 122 Hop . | . . . . . Pick Up 10 | 1 9 . . . Fast Attach 8 | 7 . . . 1 Attach 4 | . . 1 . 3 Detach . | . . . . . Swap 12 | . 7 3 . 2 Drop 5 | . 5 . . . Fire 148 | 8 101 8 23 8 Melee 36 | . . 2 29 5 Ram . | . . . . . Kick . | . . . . . Crush 1 | . . 1 . . Escape Stasis . | . . . . . Rewire 62 | . . . 62 . Trap . | . . . . . Miscellaneous . | . . . . . Route ------- -11/Scrapyard -10/Materials (discovered 6 exits: *Mat x3 / *Min x2 / [*Sub]) -10/Mines (discovered 4 exits: *Mat x2 / *Exi / [*Sub]) -10/Exiles (discovered 2 exits: [*Min x2]) -9/Mines History --------- Turn | Location | Event 5 | -11/Scrapyard | Discovered new exit (range 14) 114 | -11/Scrapyard | Entered Materials 300 | -10/Materials | Build established: Mutant 301 | -10/Materials | Discovered new exit (range 16) 433 | -10/Materials | Discovered new exit (range 11) 681 | -10/Materials | Discovered new exit (range 14) 959 | -10/Materials | Discovered new exit (range 15) 1266 | -10/Materials | Identified exit to Mines 1391 | -10/Materials | Build established: Scavenger-Mutant 1430 | -10/Materials | Discovered new exit (range 7) 1514 | -10/Materials | Discovered new exit (range 4) 1779 | -10/Materials | Identified exit to Materials 1795 | -10/Materials | Entered Mines 1958 | -10/Mines | Learned location of 1 exit from Materials 2091 | -10/Mines | Received a Mining Laser from a helpful Derelict 2092 | -10/Mines | Discovered new exit (range 9) 2445 | -10/Mines | Discovered exit to Materials (range 6) 2487 | -10/Mines | Discovered exit to Materials (range 16) 2557 | -10/Mines | Learned Materials terminal intel 2586 | -10/Mines | Deemed a non-threat by the Exiles lab entrance 2586 | -10/Mines | Discovered new exit (range 6) 2594 | -10/Mines | Entered Exiles 2594 | -10/Exiles | Found Exiles lab destroyed 2615 | -10/Exiles | Discovered new exit (range 15) 2831 | -10/Exiles | Learned location of Zion (-6) 2907 | -10/Exiles | Discovered new exit (range 11) 3578 | -10/Exiles | Entered Mines 3578 | -9/Mines | Accompanied by 2 allies 3579 | -9/Mines | Assembled infested the area 3597 | -9/Mines | Met a Derelict bent on vengeance 3638 | -9/Mines | Core integrity fell below 50% 3640 | -9/Mines | Core integrity fell below 20% 3666 | -9/Mines | Lost 4 parts (1p2n1w) 3708 | -9/Mines | Learned Materials trap positions 3784 | -9/Mines | Destroyed by S-10 Pest with Light Assault Rifle Last Messages --------------- crushing effect. 03729_ T-07 Excavator knocked back. 03730_ T-07 Excavator system terminally corrupted. 03730_ Mining Laser fried. 03735_ Acquired Corrupted Wheel. 03735_ Integrated Corrupted Wheel (+8). 03737_ Acquired 20 matter. 03739_ System corrupted: Energy discharge (-75). 03767_ Sneak attack on U-05 Engineer. 03767_ Destroyed Terrain Scanner. 03767_ Destroyed Structural Scanner. 03767_ U-05 Engineer system corrupted by crushing effect. 03767_ U-05 Engineer knocked back. 03768_ U-05 Engineer system terminally corrupted. 03768_ Wheel fried. 03772_ 9 5ZKPECIL AF3U>XV2ED%/SK 03779_ K-01 Serf collects debris. Map ----- +----------------------------------------------------+ | ????????????## ######### ##?##### | | ???????????### #####??## ######## # | | ???????????### ####???## ##### # | | ???????????## ######## | | ???????????## ############ # # # # | | ???????????## ^ ^ ###### ## # # # | | ???????????## # # ##??## #% " # | | ???????????## # # ^# #??## # ## # ## | | ???????????## ## # ^ ##?## ## # ## | | ???????????## ##^ ## ###?## # #### | | ???????????## ## ^ ###?## ## # # ####### | | ############# ###### ####?## ## ############### | | ############# ###### ####?## ## ########???###### | | ##???? ##?## ## ?????????????#### | | ######## ######????## ? ## ????????????????? | | ######### ######????## ##?##### ????????????????? | | ####????## ##????????## ##?##### ????????????????? | | ###?????## ############ ####?? ????????????????? | | ????????## ############ ####???? ????????????????? | | ????????## ###????????????????????? | | ????????################ ###????????????????????? | | ????????################ ##????????????????????? | | ??????????????????##### ##????????????????????? | | ??????????????????### ###????????????????????? | | ??????????????????## #########??????????????? | | ??????????????????## @#########??????????????? | | ?????????????????### ss ????????? | | ?????????????????## s s ????????? | | ?????????????????## #############??????????? | | ?????????????????## #############??????????? | | ?????????????????### ###?????????????????????? | | ?????????????????###########?????????????????????? | | ??????????????????########???????????????????????? | | | | | | | | | | | | | | | | | | | | | | | | | | | | | | | | | | | +----------------------------------------------------+ Best States ------------- Heat Dissipation 25 Energy Generation 14 Energy Capacity 250 Matter Stores 300 Matter Capacity 300 Sight Range 16 Terrain Scan Density 10 Evasion (%) 41 Recoil Reduction 2 Item Schematics ----------------- None Robot Schematics ------------------ None Fabricated ------------ Nothing Repaired ---------- Nothing Studied --------- None Alien Tech Used ----------------- None Achievements -------------- None Challenges ------------ None Game ------ Seed StasisSpreadWell Manual? 0 Play Time 00:24:20 Cumulative 48.8 hours Start 2026.05.03 @ 21:16:45 End 2026.05.03 @ 21:38:35 Sessions 1 Manual Loads 0 Difficulty Rogue Special Mode None Game No. 47 Rogue 47 Adventurer 0 Explorer 0 Win Type - Total 0 Types 0/0/0/0/0/0/0/0/0/0 Lore% 24 Gallery% 29 Achievement% 22 Wizard Run 0 Options --------- Layout 2 ASCII 0 Keyboard 1 Movement Vi Keybinds 0 Fullscreen 2 Font 24/Smallcaps Map View 50x44 Zoom Use 0% Tactical HUD 1 Map Filters NONE Filters NONE Steam 1 RUN: fccfb052-b0b8-4131-9285-a71db6e46b49